fUSD/lending_fUSD_20250513
["ID","MTS","AMOUNT","RATE_DAILY","PERIOD"]
[360977178,1747177490477,150.0,9.836e-05,7]
[360977179,1747177497134,393.39,9.341e-05,2]
[360977180,1747177598191,639.56375222,9.321e-05,2]
[360977181,1747177598212,67.08624778,9.321e-05,2]
[360977182,1747177639471,164.85,9.601e-05,2]
[360977188,1747177770886,663.07,9.328e-05,2]
[360977207,1747177832882,-150.0,9.936e-05,2]
[360977208,1747177832892,-300.0,9.936e-05,2]
[360977209,1747177832902,-1200.0,9.936e-05,2]
[360977210,1747177832911,-300.0,9.936e-05,2]
[360977211,1747177832920,-135.55058,9.936e-05,2]
[360977212,1747177833049,-44.91577268,9.936e-05,2]
[360977213,1747177833059,-245.44228259,9.936e-05,2]
[360977214,1747177833068,-241.0690079,9.936e-05,2]
[360977215,1747177833077,-344.09201134,9.936e-05,2]
[360977216,1747177833087,-250.0,9.937e-05,2]
[360977217,1747177833096,-674.4809255,9.937e-05,2]
[360977218,1747177833108,-195.71613897,9.937e-05,2]
[360977219,1747177833118,-617.45351727,9.937e-05,2]
[360977220,1747177833130,-252.7435472,9.937e-05,2]
[360977221,1747177833140,-466.63230389,9.937e-05,2]
[360977222,1747177833195,-200.0,9.94e-05,2]
[360977223,1747177833204,-200.0,9.942e-05,2]
[360977224,1747177833213,-236.73,9.947e-05,2]
[360977225,1747177833223,-236.73,9.949e-05,2]
[360977226,1747177833232,-204.55819555,9.95e-05,2]
[360977227,1747177833242,-236.73,9.952e-05,2]
[360977228,1747177833253,-236.73,9.954e-05,2]
[360977229,1747177833262,-236.73,9.957e-05,2]
[360977230,1747177833272,-236.73,9.96e-05,2]
[360977231,1747177833283,-236.73,9.962e-05,2]
[360977232,1747177833292,-236.73,9.965e-05,2]
[360977233,1747177833302,-1086.62,9.967e-05,2]
[360977234,1747177833312,-236.73,9.968e-05,2]
[360977235,1747177833321,-236.73,9.97e-05,2]
[360977236,1747177833332,-236.73,9.973e-05,2]
[360977237,1747177833341,-236.73,9.975e-05,2]
[360977238,1747177833351,-236.73,9.978e-05,2]
[360977239,1747177833360,-236.73,9.981e-05,2]
[360977240,1747177833370,-236.73,9.983e-05,2]
[360977241,1747177833379,-236.73,9.986e-05,2]
[360977242,1747177833389,-236.73,9.989e-05,2]
[360977243,1747177833398,-236.73,9.991e-05,2]
[360977244,1747177833408,-236.73,9.994e-05,2]
[360977245,1747177833418,-236.73,9.997e-05,2]
[360977246,1747177833428,-614.76,9.998e-05,2]
[360977247,1747177833437,-450.0,0.0001,2]
[360977248,1747177833447,-150.0,0.00010058,2]
[360977249,1747177833457,-202.38,0.00010169,2]
[360977250,1747177833467,-151.0,0.00010429,2]
[360977251,1747177833476,-668.65185757,0.00010429,2]
[360977252,1747177833486,-287.61899177,0.00010429,2]
[360977253,1747177833495,-207.4,0.00010429,2]
[360977254,1747177833504,-7.4109554,0.00010478,2]
[360977255,1747177833516,-1015.4999975,0.00010478,2]
[360977257,1747177838416,-375.27668526,9.935e-05,2]
[360977258,1747177838426,-500.0,9.935e-05,2]
[360977259,1747177838436,-422.90388637,9.935e-05,2]
[360977260,1747177838446,-500.0,9.935e-05,2]
[360977261,1747177838455,-500.0,9.935e-05,2]
[360977262,1747177838465,-500.0,9.935e-05,2]
[360977263,1747177838474,-500.0,9.935e-05,2]
[360977264,1747177838483,-500.0,9.935e-05,2]
[360977265,1747177838493,-500.0,9.935e-05,2]
[360977266,1747177838503,-500.0,9.935e-05,2]
[360977267,1747177838512,-500.0,9.935e-05,2]
[360977268,1747177838521,-500.0,9.935e-05,2]
[360977269,1747177838530,-500.0,9.935e-05,2]
[360977270,1747177838540,-500.0,9.935e-05,2]
[360977271,1747177838549,-500.0,9.935e-05,2]
[360977272,1747177838559,-500.0,9.935e-05,2]
[360977273,1747177838568,-192.01942837,9.935e-05,2]
[360977280,1747177840589,-307.98057163,9.935e-05,2]
[360977281,1747177840599,-500.0,9.935e-05,2]
[360977282,1747177840609,-500.0,9.935e-05,2]
[360977283,1747177840618,-500.0,9.935e-05,2]
[360977284,1747177840628,-275.88034362,9.935e-05,2]
[360977285,1747177840676,-224.11965638,9.935e-05,2]
[360977286,1747177840686,-500.0,9.935e-05,2]
[360977287,1747177840696,-500.0,9.935e-05,2]
[360977288,1747177840705,-500.0,9.935e-05,2]
[360977289,1747177840715,-500.0,9.935e-05,2]
[360977290,1747177840725,-500.0,9.935e-05,2]
[360977291,1747177840735,-500.0,9.935e-05,2]
[360977292,1747177840744,-578.0,0.00010274,2]
[360977293,1747177840754,-270.1390471,0.00010478,2]
[360977294,1747177840763,-1000.0,0.00010533,2]
[360977295,1747177840773,-716.04,0.00010547,2]
[360977296,1747177840786,-1015.166,0.00010827,2]
[360977297,1747177840795,-776.857,0.00010827,2]
[360977298,1747177840804,-798.0,0.00010827,2]
[360977299,1747177840813,-584.0,0.00010827,2]
[360977300,1747177840823,-918.0,0.00010827,2]
[360977301,1747177840832,-553.0,0.00010827,2]
[360977302,1747177840841,-1456.0,0.00010827,2]
[360977303,1747177840850,-1279.894,0.00010827,2]
[360977304,1747177840859,-1146.0,0.00010829,2]
[360977305,1747177840869,-5939.0,0.00010829,2]
[360977306,1747177840878,-4031.0,0.00010855,2]
[360977307,1747177840887,-154.0,0.00010855,2]
[360977308,1747177840896,-6821.0,0.00010855,2]
[360977309,1747177840905,-917.594,0.00010855,2]
[360977310,1747177840914,-879.0,0.00010855,2]
[360977311,1747177840923,-157.24651105,0.000109,2]
[360977312,1747177840932,-194.81924754,0.000109,2]
[360977313,1747177840942,-165.68994279,0.000109,2]
[360977314,1747177840951,-541.52441251,0.000109,2]
[360977315,1747177840961,-250.0,0.0001093,2]
[360977316,1747177840970,-200.0,0.0001093,2]
[360977317,1747177840980,-255.0,0.0001093,2]
[360977318,1747177840989,-420.0,0.0001093,2]
[360977319,1747177840998,-1200.0,0.0001093,2]
[360977320,1747177841007,-250.0,0.00010933,2]
[360977321,1747177841017,-200.0,0.00010933,2]
[360977322,1747177841026,-156.7210067,0.00010944,2]
[360977323,1747177841035,-1186.0,0.00010959,2]
[360977324,1747177841044,-150.0,0.00010959,2]
[360977325,1747177841054,-467.58,0.00010959,2]
[360977326,1747177841063,-400.0,0.00010959,2]
[360977327,1747177841072,-416.49818591,0.00010959,2]
[360977328,1747177841081,-995.4,0.00010959,2]
[360977329,1747177841090,-400.0,0.00010959,2]
[360977330,1747177841099,-400.0,0.00010959,2]
[360977331,1747177841109,-491.73,0.00010959,2]
[360977332,1747177841118,-400.0,0.00010959,2]
[360977333,1747177841127,-434.14,0.00010959,2]
[360977334,1747177841137,-930.61,0.00010959,2]
[360977335,1747177841147,-400.0,0.00010959,2]
[360977336,1747177841157,-400.0,0.00010959,2]
[360977337,1747177841392,-515.43344977,0.00010959,2]
[360977338,1747177841405,-400.0,0.00010959,2]
[360977339,1747177841415,-400.0,0.00010959,2]
[360977340,1747177841425,-3818.76,0.00010959,2]
[360977341,1747177841436,-450.52,0.00010959,2]
[360977342,1747177841445,-400.0,0.00010959,2]
[360977343,1747177841454,-400.0,0.00010959,2]
[360977344,1747177841464,-1598.020913,0.00010959,2]
[360977345,1747177841473,-159.144314,0.00010959,2]
[360977346,1747177841482,-1579.56,0.00010959,2]
[360977347,1747177841491,-552.8,0.00010959,2]
[360977348,1747177841500,-824.98,0.00010959,2]
[360977349,1747177841509,-304.984101,0.00010959,2]
[360977350,1747177841518,-400.0,0.00010959,2]
[360977351,1747177841527,-400.0,0.00010959,2]
[360977352,1747177841536,-1359.58,0.00010959,2]
[360977353,1747177841545,-400.0,0.0001096,2]
[360977354,1747177841554,-400.0,0.0001096,2]
[360977355,1747177841564,-400.0,0.0001096,2]
[360977356,1747177841573,-623.55,0.0001096,2]
[360977357,1747177841582,-400.0,0.0001096,2]
[360977358,1747177841591,-400.0,0.0001096,2]
[360977359,1747177841601,-400.0,0.0001096,2]
[360977360,1747177841609,-400.0,0.0001096,2]
[360977361,1747177841619,-400.0,0.0001096,2]
[360977362,1747177841628,-422.96,0.0001096,2]
[360977363,1747177841637,-571.48,0.0001096,2]
[360977364,1747177841646,-400.0,0.0001096,2]
[360977365,1747177841656,-400.0,0.0001096,2]
[360977366,1747177841665,-400.0,0.0001096,2]
[360977367,1747177841674,-400.0,0.0001096,2]
[360977368,1747177841683,-400.0,0.0001096,2]
[360977369,1747177841693,-694.94,0.0001096,2]
[360977370,1747177841703,-312.1658715,0.0001096,2]
[360977371,1747177841712,-400.0,0.0001096,2]
[360977372,1747177841721,-400.0,0.0001096,2]
[360977373,1747177841730,-400.0,0.0001096,2]
[360977374,1747177841739,-400.0,0.0001096,2]
[360977375,1747177841748,-400.0,0.0001096,2]
[360977376,1747177841757,-400.0,0.0001096,2]
[360977377,1747177841766,-419.06,0.0001096,2]
[360977378,1747177841776,-1033.31,0.0001096,2]
[360977379,1747177841790,-400.0,0.0001096,2]
[360977380,1747177841799,-445.13,0.0001096,2]
[360977381,1747177841808,-590.33,0.0001096,2]
[360977382,1747177841817,-400.0,0.0001096,2]
[360977383,1747177841828,-400.0,0.0001096,2]
[360977384,1747177841837,-484.3,0.0001096,2]
[360977385,1747177841846,-400.0,0.0001096,2]
[360977386,1747177841855,-400.0,0.0001096,2]
[360977387,1747177841866,-687.53,0.0001096,2]
[360977388,1747177841875,-400.0,0.0001096,2]
[360977389,1747177841884,-400.0,0.0001096,2]
[360977390,1747177841893,-523.17,0.0001096,2]
[360977391,1747177841902,-400.0,0.0001096,2]
[360977392,1747177841912,-497.9,0.0001096,2]
[360977393,1747177841921,-430.27,0.0001096,2]
[360977394,1747177841930,-967.7,0.0001096,2]
[360977395,1747177841939,-400.0,0.0001096,2]
[360977396,1747177841949,-400.0,0.0001096,2]
[360977397,1747177841958,-529.91,0.0001096,2]
[360977398,1747177841967,-400.0,0.0001096,2]
[360977399,1747177841976,-430.95,0.0001096,2]
[360977400,1747177841985,-400.0,0.0001096,2]
[360977401,1747177841994,-634.66,0.0001096,2]
[360977402,1747177842003,-193.99,0.0001096,2]
[360977403,1747177842012,-400.0,0.0001096,2]
[360977404,1747177842022,-864.63,0.0001096,2]
[360977405,1747177842031,-893.21,0.0001096,2]
[360977406,1747177842040,-927.11,0.0001096,2]
[360977407,1747177842049,-400.0,0.0001096,2]
[360977408,1747177842058,-400.0,0.0001096,2]
[360977409,1747177842067,-400.0,0.0001096,2]
[360977410,1747177842076,-290.31038542,0.0001096,2]
[360977411,1747177842085,-400.0,0.0001096,2]
[360977412,1747177842094,-539.37,0.0001096,2]
[360977413,1747177842103,-355.27,0.0001096,2]
[360977414,1747177842112,-1298.11,0.0001096,2]
[360977415,1747177842122,-400.0,0.0001096,2]
[360977416,1747177842131,-1195.88,0.0001096,2]
[360977417,1747177842140,-400.0,0.0001096,2]
[360977418,1747177842150,-400.0,0.0001096,2]
[360977419,1747177842159,-400.0,0.0001096,2]
[360977420,1747177842167,-995.3,0.0001096,2]
[360977421,1747177842176,-400.0,0.0001096,2]
[360977422,1747177842186,-413.32,0.0001096,2]
[360977423,1747177842195,-661.02,0.0001096,2]
[360977424,1747177842204,-400.0,0.0001096,2]
[360977425,1747177842214,-400.0,0.0001096,2]
[360977426,1747177842223,-363.34,0.0001096,2]
[360977427,1747177842232,-428.14,0.0001096,2]
[360977428,1747177842242,-525.9,0.0001096,2]
[360977429,1747177842252,-400.0,0.0001096,2]
[360977430,1747177842262,-435.24,0.0001096,2]
[360977431,1747177842271,-400.0,0.0001096,2]
[360977432,1747177842280,-411.49,0.0001096,2]
[360977433,1747177842291,-795.18,0.0001096,2]
[360977434,1747177842300,-1532.21,0.0001096,2]
[360977435,1747177842309,-938.35,0.0001096,2]
[360977436,1747177842318,-400.0,0.0001096,2]
[360977437,1747177842327,-400.0,0.0001096,2]
[360977438,1747177842337,-467.12051459,0.0001096,2]
[360977439,1747177842346,-782.01,0.0001096,2]
[360977440,1747177842356,-400.0,0.0001096,2]
[360977441,1747177842365,-660.81,0.0001096,2]
[360977442,1747177842375,-1153.21,0.0001096,2]
[360977443,1747177842384,-443.04502663,0.0001096,2]
[360977444,1747177842395,-400.0,0.0001096,2]
[360977445,1747177842404,-400.0,0.0001096,2]
[360977446,1747177842415,-1640.97,0.0001096,2]
[360977447,1747177842424,-400.0,0.0001096,2]
[360977448,1747177842433,-424.1,0.0001096,2]
[360977449,1747177842444,-400.0,0.0001096,2]
[360977450,1747177842454,-400.0,0.0001096,2]
[360977451,1747177842463,-1737.68,0.0001096,2]
[360977452,1747177842473,-451.76,0.0001096,2]
[360977453,1747177842485,-701.04,0.0001096,2]
[360977454,1747177842495,-400.0,0.0001096,2]
[360977455,1747177842504,-1236.4,0.0001096,2]
[360977456,1747177842513,-624.97,0.0001096,2]
[360977457,1747177842522,-599.04,0.0001096,2]
[360977458,1747177842532,-1090.86,0.0001096,2]
[360977459,1747177842542,-400.0,0.0001096,2]
[360977460,1747177842551,-400.0,0.0001096,2]
[360977461,1747177842561,-505.59,0.0001096,2]
[360977462,1747177842570,-559.95,0.0001096,2]
[360977463,1747177842579,-1384.79,0.0001096,2]
[360977464,1747177842589,-400.0,0.0001096,2]
[360977465,1747177842599,-400.0,0.0001096,2]
[360977466,1747177842610,-400.0,0.0001096,2]
[360977467,1747177842621,-400.0,0.0001096,2]
[360977468,1747177842630,-400.0,0.0001096,2]
[360977469,1747177842640,-1039.32,0.0001096,2]
[360977470,1747177842650,-1141.13,0.0001096,2]
[360977471,1747177842659,-400.0,0.0001096,2]
[360977472,1747177842670,-548.5,0.0001096,2]
[360977473,1747177842679,-1107.61,0.0001096,2]
[360977474,1747177842689,-400.0,0.0001096,2]
[360977475,1747177842698,-897.78,0.0001096,2]
[360977476,1747177842707,-400.0,0.0001096,2]
[360977477,1747177842716,-400.0,0.0001096,2]
[360977478,1747177842726,-400.0,0.0001096,2]
[360977479,1747177842735,-485.6,0.0001096,2]
[360977480,1747177842744,-400.0,0.0001096,2]
[360977481,1747177842754,-703.58,0.0001096,2]
[360977482,1747177842763,-513.12,0.0001096,2]
[360977483,1747177842772,-400.0,0.0001096,2]
[360977484,1747177842785,-400.0,0.0001096,2]
[360977485,1747177842794,-400.0,0.0001096,2]
[360977486,1747177842804,-400.0,0.0001096,2]
[360977487,1747177842813,-1427.76,0.0001096,2]
[360977488,1747177842823,-400.0,0.0001096,2]
[360977489,1747177842833,-400.0,0.0001096,2]
[360977490,1747177842843,-400.0,0.0001096,2]
[360977491,1747177842852,-400.0,0.0001096,2]
[360977492,1747177842862,-1109.2,0.0001096,2]
[360977493,1747177842871,-400.0,0.0001096,2]
[360977494,1747177842880,-598.93,0.0001096,2]
[360977495,1747177842890,-400.0,0.0001096,2]
[360977496,1747177842899,-400.0,0.0001096,2]
[360977497,1747177842908,-1017.59,0.0001096,2]
[360977498,1747177842917,-1845.49,0.0001096,2]
[360977499,1747177842926,-721.54,0.0001096,2]
[360977500,1747177842935,-400.0,0.0001096,2]
[360977501,1747177842944,-400.0,0.0001096,2]
[360977502,1747177842954,-623.45,0.0001096,2]
[360977503,1747177842963,-400.0,0.0001096,2]
[360977504,1747177842972,-400.0,0.0001096,2]
[360977505,1747177842981,-400.0,0.0001096,2]
[360977506,1747177842990,-947.78,0.0001096,2]
[360977507,1747177842999,-400.0,0.0001096,2]
[360977508,1747177843008,-614.81,0.0001096,2]
[360977509,1747177843017,-493.15,0.0001096,2]
[360977510,1747177843026,-400.0,0.0001096,2]
[360977511,1747177843035,-1689.01,0.0001096,2]
[360977512,1747177843044,-400.0,0.0001096,2]
[360977513,1747177843054,-1163.98,0.0001096,2]
[360977514,1747177843063,-400.0,0.0001096,2]
[360977515,1747177843072,-594.97,0.0001096,2]
[360977516,1747177843082,-400.0,0.0001096,2]
[360977517,1747177843091,-986.53,0.0001096,2]
[360977518,1747177843100,-400.0,0.0001096,2]
[360977519,1747177843109,-400.0,0.0001096,2]
[360977520,1747177843119,-400.0,0.0001096,2]
[360977521,1747177843128,-558.31,0.0001096,2]
[360977522,1747177843138,-1655.25,0.0001096,2]
[360977523,1747177843147,-400.0,0.0001096,2]
[360977524,1747177843156,-416.88,0.0001096,2]
[360977525,1747177843165,-1939.59,0.0001096,2]
[360977526,1747177843175,-400.0,0.0001096,2]
[360977527,1747177843184,-400.0,0.0001096,2]
[360977528,1747177843195,-400.0,0.0001096,2]
[360977529,1747177843205,-400.0,0.0001096,2]
[360977530,1747177843214,-346.98,0.0001096,2]
[360977531,1747177843225,-520.64,0.0001096,2]
[360977532,1747177843234,-1225.03,0.0001096,2]
[360977533,1747177843244,-400.0,0.0001096,2]
[360977534,1747177843254,-400.0,0.0001096,2]
[360977535,1747177843263,-973.36,0.0001096,2]
[360977536,1747177843273,-1656.83,0.0001096,2]
[360977537,1747177843282,-526.89,0.0001096,2]
[360977538,1747177843291,-6972.05,0.0001096,2]
[360977539,1747177843300,-400.0,0.0001096,2]
[360977540,1747177843310,-524.76,0.0001096,2]
[360977542,1747177843319,-400.0,0.0001096,2]
[360977543,1747177843328,-427.45,0.0001096,2]
[360977545,1747177843337,-400.0,0.0001096,2]
[360977547,1747177843347,-252.33725605,0.0001096,2]
[360977548,1747177843356,-400.0,0.0001096,2]
[360977549,1747177843365,-1510.85,0.0001096,2]
[360977550,1747177843374,-824.45,0.0001096,2]
[360977551,1747177843383,-453.72,0.0001096,2]
[360977552,1747177843393,-720.6,0.0001096,2]
[360977553,1747177843402,-400.0,0.0001096,2]
[360977555,1747177843412,-637.67,0.0001096,2]
[360977556,1747177843421,-400.0,0.0001096,2]
[360977557,1747177843430,-400.0,0.0001096,2]
[360977558,1747177843441,-400.0,0.0001096,2]
[360977559,1747177843450,-400.0,0.0001096,2]
[360977560,1747177843459,-3868.02,0.0001096,2]
[360977561,1747177843468,-400.0,0.0001096,2]
[360977562,1747177843477,-817.34,0.0001096,2]
[360977563,1747177843487,-423.21,0.0001096,2]
[360977564,1747177843496,-400.0,0.0001096,2]
[360977565,1747177843505,-400.0,0.0001096,2]
[360977566,1747177843514,-400.0,0.0001096,2]
[360977567,1747177843523,-1145.2,0.0001096,2]
[360977568,1747177843532,-2037.66,0.0001096,2]
[360977569,1747177843542,-400.0,0.0001096,2]
[360977570,1747177843551,-554.61,0.0001096,2]
[360977571,1747177843560,-420.2,0.0001096,2]
[360977572,1747177843569,-693.33,0.0001096,2]
[360977573,1747177843579,-1785.76,0.0001096,2]
[360977574,1747177843589,-635.53,0.0001096,2]
[360977575,1747177843598,-400.0,0.0001096,2]
[360977576,1747177843607,-400.0,0.0001096,2]
[360977577,1747177843616,-2651.86,0.0001096,2]
[360977578,1747177843625,-400.0,0.0001096,2]
[360977579,1747177843635,-986.19,0.0001096,2]
[360977580,1747177843644,-400.0,0.0001096,2]
[360977581,1747177843653,-400.0,0.0001096,2]
[360977582,1747177843663,-400.0,0.0001096,2]
[360977583,1747177843671,-419.2,0.0001096,2]
[360977584,1747177843681,-400.0,0.0001096,2]
[360977585,1747177843691,-552.53,0.0001096,2]
[360977586,1747177843700,-661.56,0.0001096,2]
[360977587,1747177843709,-775.79,0.0001096,2]
[360977588,1747177843719,-400.0,0.0001096,2]
[360977589,1747177843728,-400.0,0.0001096,2]
[360977590,1747177843737,-400.0,0.0001096,2]
[360977591,1747177843746,-440.99,0.0001096,2]
[360977592,1747177843755,-400.0,0.0001096,2]
[360977593,1747177843764,-4632.48,0.0001096,2]
[360977594,1747177843774,-400.0,0.0001096,2]
[360977595,1747177843788,-400.0,0.0001096,2]
[360977596,1747177843797,-400.0,0.0001096,2]
[360977597,1747177843806,-539.29352788,0.0001096,2]
[360977598,1747177843816,-400.0,0.0001096,2]
[360977599,1747177843826,-400.0,0.0001096,2]
[360977600,1747177843835,-1391.83,0.0001096,2]
[360977601,1747177843844,-400.0,0.0001096,2]
[360977602,1747177843853,-400.0,0.0001096,2]
[360977603,1747177843863,-400.0,0.0001096,2]
[360977604,1747177843873,-400.0,0.0001096,2]
[360977605,1747177843883,-400.0,0.0001096,2]
[360977606,1747177843892,-400.0,0.0001096,2]
[360977607,1747177843901,-546.46,0.0001096,2]
[360977608,1747177843911,-400.0,0.0001096,2]
[360977609,1747177843920,-400.0,0.0001096,2]
[360977610,1747177843930,-400.0,0.0001096,2]
[360977611,1747177843940,-554.71,0.0001096,2]
[360977612,1747177843950,-400.0,0.0001096,2]
[360977613,1747177843959,-400.0,0.0001096,2]
[360977614,1747177843968,-151.0,0.00010961,2]
[360977615,1747177843978,-618.71,0.00010961,2]
[360977616,1747177843987,-775.14,0.00010961,2]
[360977617,1747177843997,-400.0,0.00010961,2]
[360977618,1747177844006,-400.0,0.00010961,2]
[360977619,1747177844016,-925.38,0.00010961,2]
[360977620,1747177844026,-898.55,0.00010961,2]
[360977621,1747177844035,-400.0,0.00010961,2]
[360977622,1747177844045,-400.0,0.00010961,2]
[360977623,1747177844055,-1729.65,0.00010961,2]
[360977624,1747177844064,-400.0,0.00010961,2]
[360977625,1747177844074,-400.0,0.00010961,2]
[360977626,1747177844083,-400.0,0.00010961,2]
[360977627,1747177844092,-400.0,0.00010961,2]
[360977628,1747177844102,-437.48,0.00010961,2]
[360977629,1747177844111,-400.0,0.00010961,2]
[360977630,1747177844121,-1473.63,0.00010961,2]
[360977631,1747177844131,-400.0,0.00010961,2]
[360977632,1747177844141,-1343.92,0.00010961,2]
[360977633,1747177844151,-1044.49,0.00010961,2]
[360977634,1747177844160,-447.07,0.00010961,2]
[360977635,1747177844170,-528.1,0.00010961,2]
[360977636,1747177844179,-1703.22,0.00010961,2]
[360977637,1747177844189,-475.16,0.00010961,2]
[360977638,1747177844198,-400.0,0.00010961,2]
[360977639,1747177844208,-409.93,0.00010961,2]
[360977640,1747177844218,-400.0,0.00010961,2]
[360977641,1747177844227,-400.0,0.00010961,2]
[360977642,1747177844237,-400.0,0.00010961,2]
[360977643,1747177844247,-1033.79,0.00010961,2]
[360977644,1747177844256,-843.31,0.00010961,2]
[360977645,1747177844266,-400.0,0.00010961,2]
[360977646,1747177844275,-400.0,0.00010961,2]
[360977647,1747177844285,-862.59,0.00010961,2]
[360977648,1747177844294,-680.59,0.00010961,2]
[360977649,1747177844305,-1888.2,0.00010961,2]
[360977650,1747177844315,-400.0,0.00010961,2]
[360977651,1747177844324,-400.0,0.00010961,2]
[360977652,1747177844335,-322.85061853,0.00010961,2]
[360977653,1747177844344,-400.0,0.00010961,2]
[360977654,1747177844354,-400.0,0.00010961,2]
[360977655,1747177844365,-400.0,0.00010961,2]
[360977656,1747177844375,-520.14,0.00010961,2]
[360977657,1747177844384,-1351.81,0.00010961,2]
[360977658,1747177844396,-400.0,0.00010961,2]
[360977659,1747177844405,-728.97,0.00010961,2]
[360977660,1747177844414,-453.91,0.00010961,2]
[360977661,1747177844424,-472.2,0.00010961,2]
[360977662,1747177844435,-1290.49,0.00010961,2]
[360977663,1747177844447,-909.84,0.00010961,2]
[360977664,1747177844458,-434.13,0.00010961,2]
[360977665,1747177844469,-581.28,0.00010961,2]
[360977666,1747177844479,-400.0,0.00010961,2]
[360977667,1747177844658,-400.0,0.00010961,2]
[360977668,1747177844668,-400.0,0.00010961,2]
[360977669,1747177844677,-400.0,0.00010961,2]
[360977670,1747177844687,-726.82,0.00010961,2]
[360977671,1747177844697,-400.0,0.00010961,2]
[360977672,1747177844706,-400.0,0.00010961,2]
[360977673,1747177844715,-598.05,0.00010961,2]
[360977674,1747177844725,-400.0,0.00010961,2]
[360977675,1747177844734,-1784.56,0.00010961,2]
[360977676,1747177844744,-1413.07,0.00010961,2]
[360977677,1747177844754,-1000.0,0.00010961,2]
[360977678,1747177844763,-265.44618525,0.00010961,2]
[360977679,1747177844772,-400.0,0.00010961,2]
[360977680,1747177844782,-468.06,0.00010961,2]
[360977681,1747177844795,-839.62,0.00010961,2]
[360977682,1747177844804,-400.0,0.00010961,2]
[360977683,1747177844814,-464.66,0.00010961,2]
[360977684,1747177844823,-1216.66,0.00010961,2]
[360977685,1747177844834,-717.88,0.00010961,2]
[360977686,1747177844844,-1922.61,0.00010961,2]
[360977687,1747177844853,-481.58,0.00010961,2]
[360977688,1747177844862,-400.0,0.00010961,2]
[360977689,1747177844873,-400.0,0.00010961,2]
[360977690,1747177844882,-400.0,0.00010961,2]
[360977691,1747177844892,-592.76,0.00010961,2]
[360977692,1747177844901,-400.0,0.00010961,2]
[360977693,1747177844911,-475.54,0.00010961,2]
[360977694,1747177844920,-400.0,0.00010961,2]
[360977695,1747177844929,-455.8,0.00010961,2]
[360977696,1747177844938,-659.72,0.00010961,2]
[360977697,1747177844948,-1578.02,0.00010961,2]
[360977698,1747177844959,-766.0,0.00010961,2]
[360977699,1747177844969,-400.0,0.00010961,2]
[360977700,1747177844979,-403.35,0.00010961,2]
[360977701,1747177844989,-1170.41,0.00010961,2]
[360977702,1747177844999,-1268.95,0.00010961,2]
[360977703,1747177845008,-576.22,0.00010961,2]
[360977704,1747177845018,-2492.76,0.00010961,2]
[360977705,1747177845027,-870.54,0.00010961,2]
[360977706,1747177845036,-400.0,0.00010961,2]
[360977707,1747177845045,-400.0,0.00010961,2]
[360977708,1747177845055,-400.0,0.00010961,2]
[360977709,1747177845064,-4296.52,0.00010961,2]
[360977710,1747177845073,-400.0,0.00010961,2]
[360977711,1747177845082,-400.0,0.00010961,2]